{"text_format":"1","workbook":"xlsx","n_sheets":3,"sheets":["TOELICHTING","SCAN","Indicatoren"],"not_rendered":{"charts":0,"images":2,"macros":1,"external_links":0,"defined_names":35,"comments":1,"pivot_tables":0},"unopened":[],"bounds":{"document_bytes":16777216,"sheet_cells":100000,"rows_first":2000,"rows_last":500,"rows_between":2000,"halvings":0,"cell_chars":16384,"cell_head_chars":4096},"cells_cut":0,"cells_raw":0,"read":"whole","date_system":"1900"}

{"sheet":"TOELICHTING","index":0,"n_rows":2,"n_cols":7,"rows_kept":2,"cut":false,"hidden":false,"merged":[]}
["Beste gebruiker,                                          \n\nDeze behandelscan kunt u als hulpmiddel gebruiken bij het bepalen van de behandelaanpak (A, B of C) van een evenement; de keuze van de behandelclassificatie blijft altijd uw eigen afweging als gemeente. \n\nDe behandelscan is bedoeld voor evenementen waarvoor een vergunning vereist is. De uitkomst van een ingevulde behandelscan is een indicatie van de behandelaanpak weergeven in een (behandel-)classificatie. De adviescriteria van de hulpdiensten zijn in de behandelscan verwerkt; hiermee wordt het voor een vergunningverlener eenvoudig inzichtelijk óf en bij wie van de hulpdiensten advies kan worden aangevraagd.                                                                                                                                     Deze scan is een eenvoudig invulmodel (Excel) waarbij op basis van waardering van indicatoren de mate van risico en complexiteit van standaard profielen (publiek, ruimte en activiteiten) wordt berekend. De uitkomst van een ingevulde scan is een eerste globale inschatting van de behandelaanpak. Benadrukt wordt dat de scan een richtinggevend en kwantitatief hulpmiddel is.                                                                                                                                                                                                                                                                                                                                                      We willen benadrukken deze scan niet bedoeld is als risicoanalyse instrument. De risicoanalyse van een evenement wordt later in het proces uitgevoerd. Voor het uitvoeren van een risicoanalyse zijn andere instrumenten voorhanden. \n\nHoe werkt deze behandelscan?\nDe informatie die benodigd is voor het invullen van deze scan zal grotendeels terug te vinden zijn in het ingevulde aanvraagformulier, de reeds aangeleverde documenten (bijvoorbeeld een veiligheidsplan), eventuele evaluaties en informatie uit een vooroverleg. Met de uitkomst van een ingevulde scan weet u bij wie u advies kunt aanvragen. \n\nHet is mogelijk dat de automatisch gegenereerde indicatie van de behandelaanpak niet overeenkomt met uw beeld van de classificatie en behandelaanpak van het evenement. U kunt er voor kiezen de behandelaanpak hoger of lager te classificeren. Dit kunt u onderaan de scan aangeven en dat ook toelichten.\n\nHeeft u vragen of suggesties voor de verdere doorontwikkeling van deze scan, dan horen wij die graag. We zijn voornemens om periodiek een update van dit instrument uit te brengen.\n\nMet vriendelijke groet,\n\nDaan van Eeden - Veiligheidsregio Midden- en West-Brabant               (daan.van.eeden@vrmwb.nl)\nKees Arts - Veiligheidsregio’s Brabant-Noord & Brabant-Zuidoost        (k.arts@vrbn.nl; keesarts@vrbzo.nl)                                                                                                                                                                                                                                                                                                                                                                                                                                                                                                                                                   ",null,null,null,null,null," "]
["Versie 1.2, 12-07-2022"]

{"sheet":"SCAN","index":1,"n_rows":71,"n_cols":9,"rows_kept":71,"cut":false,"hidden":false,"merged":[[1,0,1,6],[66,3,66,5],[71,2,71,6],[67,3,68,5],[64,1,66,1]]}
[]
[" BEHANDELSCAN EVENEMENTEN BRABANT"]
[]
[null,"Naam evenement"]
[null,"Datum evenement"]
[null,"Adres of locatie "]
[null,"Gemeente"]
[null,"Veiligheidsregio"]
[null,"Ingevuld door"]
[]
[null,null," ","POLITIE","GHOR","BRANDWEER"]
[null,"Activiteitenprofiel ",null,"Score","Score","Score"]
[1,"Wat voor soort evenement betreft het?","-",{"$f":"VLOOKUP(C13,Indicatoren!B2:E26,2,FALSE)","v":0},{"$f":"VLOOKUP(C13,Indicatoren!B2:E26,3,FALSE)","v":0},{"$f":"VLOOKUP(C13,Indicatoren!B2:E26,4,FALSE)","v":0}]
[null,null,"-",{"$f":"VLOOKUP(C14,Indicatoren!B2:E26,2,FALSE)","v":0},{"$f":"VLOOKUP(C14,Indicatoren!B2:E26,3,FALSE)","v":0},{"$f":"VLOOKUP(C14,Indicatoren!B2:E26,4,FALSE)","v":0}]
[null,null,"-",{"$f":"VLOOKUP(C15,Indicatoren!B2:E26,2,FALSE)","v":0},{"$f":"VLOOKUP(C15,Indicatoren!B2:E26,3,FALSE)","v":0},{"$f":"VLOOKUP(C15,Indicatoren!B2:E26,4,FALSE)","v":0}]
[null,null,"-",{"$f":"MAX(D13:D15)","v":0},{"$f":"MAX(E13:E15)","v":0},{"$f":"MAX(F13:F15)","v":0}]
[2,"Op welk moment vindt het evenement plaats?","-",{"$f":"VLOOKUP(C17,Indicatoren!B28:E32,2,FALSE)","v":0},{"$f":"VLOOKUP(C17,Indicatoren!B28:E32,3,FALSE)","v":0},{"$f":"VLOOKUP(C17,Indicatoren!B28:E32,4,FALSE)","v":0}]
[3,"Als het een muziekfeest betreft, welke muziek betreft het dan?","-",{"$f":"VLOOKUP(C18,Indicatoren!B34:E42,2,FALSE)","v":0},{"$f":"VLOOKUP(C18,Indicatoren!B34:E42,3,FALSE)","v":0},{"$f":"VLOOKUP(C18,Indicatoren!B34:E42,4,FALSE)","v":0}]
[null,null,"-",{"$f":"VLOOKUP(C19,Indicatoren!B34:E42,2,FALSE)","v":0},{"$f":"VLOOKUP(C19,Indicatoren!B34:E42,3,FALSE)","v":0},{"$f":"VLOOKUP(C19,Indicatoren!B34:E42,4,FALSE)","v":0}]
[null,null,"-",{"$f":"VLOOKUP(C20,Indicatoren!B34:E42,2,FALSE)","v":0},{"$f":"VLOOKUP(C20,Indicatoren!B34:E42,3,FALSE)","v":0},{"$f":"VLOOKUP(C20,Indicatoren!B34:E42,4,FALSE)","v":0}]
[null,null,"-",{"$f":"MAX(D18:D20)","v":0},{"$f":"SUM(E18:E20)","v":0},{"$f":"SUM(F18:F20)","v":0}]
[4,"Wordt er overnacht?","-",{"$f":"VLOOKUP(C22,Indicatoren!B44:E47,2,FALSE)","v":0},{"$f":"VLOOKUP(C22,Indicatoren!B44:E47,3,FALSE)","v":0},{"$f":"VLOOKUP(C22,Indicatoren!B44:E47,4,FALSE)","v":0}]
[5,"Wordt er een permanent bouwwerk gebruikt?","-",{"$f":"VLOOKUP(C23,Indicatoren!B49:E54,2,FALSE)","v":0},{"$f":"VLOOKUP(C23,Indicatoren!B49:E54,3,FALSE)","v":0},{"$f":"VLOOKUP(C23,Indicatoren!B49:E54,4,FALSE)","v":0}]
[6,"Is er open vuur aanwezig?","-",{"$f":"VLOOKUP(C24,Indicatoren!B56:E59,2,FALSE)","v":0},{"$f":"VLOOKUP(C24,Indicatoren!B56:E59,3,FALSE)","v":0},{"$f":"VLOOKUP(C24,Indicatoren!B56:E59,4,FALSE)","v":0}]
[7,"Wordt er vuurwerk afgestoken?","-",{"$f":"VLOOKUP(C25,Indicatoren!B61:E63,2,FALSE)","v":0},{"$f":"VLOOKUP(C25,Indicatoren!B61:E63,3,FALSE)","v":0},{"$f":"VLOOKUP(C25,Indicatoren!B61:E63,4,FALSE)","v":0}]
[8,"Wordt er gebruik gemaakt van tijdelijke watervoorzieningen?","-",{"$f":"VLOOKUP(C26,Indicatoren!B65:E70,2,FALSE)","v":0},{"$f":"VLOOKUP(C26,Indicatoren!B65:E70,3,FALSE)","v":0},{"$f":"VLOOKUP(C26,Indicatoren!B65:E70,4,FALSE)","v":0}]
[null,null,"-",{"$f":"VLOOKUP(C27,Indicatoren!B65:E70,2,FALSE)","v":0},{"$f":"VLOOKUP(C27,Indicatoren!B65:E70,3,FALSE)","v":0},{"$f":"VLOOKUP(C27,Indicatoren!B65:E70,4,FALSE)","v":0}]
[null,null,"-",{"$f":"VLOOKUP(C28,Indicatoren!B65:E70,2,FALSE)","v":0},{"$f":"VLOOKUP(C28,Indicatoren!B65:E70,3,FALSE)","v":0},{"$f":"VLOOKUP(C28,Indicatoren!B65:E70,4,FALSE)","v":0}]
[null,null,"-",{"$f":"MAX(D26:D28)","v":0},{"$f":"MAX(E26:E28)","v":0},{"$f":"MAX(F26:F28)","v":0}]
[9,"Wordt er voedsel bereidt op het evenemententerrein? ","-",{"$f":"VLOOKUP(C30,Indicatoren!B72:E76,2,FALSE)","v":0},{"$f":"VLOOKUP(C30,Indicatoren!B72:E76,3,FALSE)","v":0},{"$f":"VLOOKUP(C30,Indicatoren!B72:E76,4,FALSE)","v":0}]
[10,"Is er een gelegenheid tot tatoeëring en/of piercen?","-",{"$f":"VLOOKUP(C31,Indicatoren!B78:E80,2,FALSE)","v":0},{"$f":"VLOOKUP(C31,Indicatoren!B78:E80,3,FALSE)","v":0},{"$f":"VLOOKUP(C31,Indicatoren!B78:E80,4,FALSE)","v":0}]
[11,"Zijn er ervaringen met de organisator van het evenement?","-",{"$f":"VLOOKUP(C32,Indicatoren!B82:E85,2,FALSE)","v":0},{"$f":"VLOOKUP(C32,Indicatoren!B82:E85,3,FALSE)","v":0},{"$f":"VLOOKUP(C32,Indicatoren!B82:E85,4,FALSE)","v":0}]
[null,null,"subtotaal ",{"$f":"SUM(D16:D17,D21:D25,D29:D32)","v":0},{"$f":"SUM(E16:E17,E21:E25,E29:E32)","v":0},{"$f":"SUM(F16:F17,F21:F25,F29:F32)","v":0}]
[null,"Publieksprofiel",null,"Score","Score","Score"]
[12,"Hoeveel bedraagt het verwachtte aantal personen op het piekmoment?","-",{"$f":"VLOOKUP(C35,Indicatoren!B87:E93,2,FALSE)","v":0},{"$f":"VLOOKUP(C35,Indicatoren!B87:E93,3,FALSE)","v":0},{"$f":"VLOOKUP(C35,Indicatoren!B87:E93,4,FALSE)","v":0}]
[13,"Wat is de belangrijkste leeftijdscategorie van de doelgroep?","-",{"$f":"VLOOKUP(C36,Indicatoren!B95:E101,2,FALSE)","v":0},{"$f":"VLOOKUP(C36,Indicatoren!B95:F101,3,FALSE)","v":0},{"$f":"VLOOKUP(C36,Indicatoren!B95:E101,4,FALSE)","v":0}]
[null,null,"-",{"$f":"VLOOKUP(C37,Indicatoren!B95:E101,2,FALSE)","v":0},{"$f":"VLOOKUP(C37,Indicatoren!B95:E101,3,FALSE)","v":0},{"$f":"VLOOKUP(C37,Indicatoren!B95:E101,4,FALSE)","v":0}]
[null,null,"-",{"$f":"MAX(D36:D37)","v":0},{"$f":"MAX(E36:E37)","v":0},{"$f":"MAX(F36:F37)","v":0}]
[14,"Wordt er een risicovolle doelgroep verwacht?","-",{"$f":"VLOOKUP(C39,Indicatoren!B103:E108,2,FALSE)","v":0},{"$f":"VLOOKUP(C39,Indicatoren!B103:E108,3,FALSE)","v":0},{"$f":"VLOOKUP(C39,Indicatoren!B103:E108,4,FALSE)","v":0}]
[15,"Is een deel van de doelgroep verminderd zelfredzaam?","-",{"$f":"VLOOKUP(C40,Indicatoren!B110:E113,2,FALSE)","v":0},{"$f":"VLOOKUP(C40,Indicatoren!B110:E113,3,FALSE)","v":0},{"$f":"VLOOKUP(C40,Indicatoren!B110:E113,4,FALSE)","v":0}]
[16,"Wordt er drank en / of drugs genuttigd?","-",{"$f":"VLOOKUP(C41,Indicatoren!B115:E121,2,FALSE)","v":0},{"$f":"VLOOKUP(C41,Indicatoren!B115:E121,3,FALSE)","v":0},{"$f":"VLOOKUP(C41,Indicatoren!B115:E121,4,FALSE)","v":0}]
[17,"Wat is de aantrekkingskracht van het evenement ","-",{"$f":"VLOOKUP(C42,Indicatoren!B123:E128,2,FALSE)","v":0},{"$f":"VLOOKUP(C42,Indicatoren!B123:E128,3,FALSE)","v":0},{"$f":"VLOOKUP(C42,Indicatoren!B123:E128,4,FALSE)","v":0}]
[null,null,"subtotaal ",{"$f":"SUM(D35,D38:D42)","v":0},{"$f":"SUM(E35,E38:E42)","v":0},{"$f":"SUM(F35,F38:F42)","v":0}]
[null,"Ruimtelijk profiel",null,"Score","Score","Score"]
[18,"Wat is het type locatie en ondergrond?","-",{"$f":"VLOOKUP(C45,Indicatoren!B130:E136,2,FALSE)","v":0},{"$f":"VLOOKUP(C45,Indicatoren!B130:E136,3,FALSE)","v":0},{"$f":"VLOOKUP(C45,Indicatoren!B130:E136,4,FALSE)","v":0}]
[null,null,"-",{"$f":"VLOOKUP(C46,Indicatoren!B130:E136,2,FALSE)","v":0},{"$f":"VLOOKUP(C46,Indicatoren!B130:E136,3,FALSE)","v":0},{"$f":"VLOOKUP(C46,Indicatoren!B130:E136,4,FALSE)","v":0}]
[null,null,"-",{"$f":"VLOOKUP(C47,Indicatoren!B130:E136,2,FALSE)","v":0},{"$f":"VLOOKUP(C47,Indicatoren!B130:E136,3,FALSE)","v":0},{"$f":"VLOOKUP(C47,Indicatoren!B130:E136,4,FALSE)","v":0}]
[null,null,"-",{"$f":"MAX(D45:D47)","v":0},{"$f":"MAX(E45:E47)","v":0},{"$f":"MAX(F45:F47)","v":0}]
[19,"Betreft het een locatie met dieren?","-",{"$f":"VLOOKUP(C49,Indicatoren!B138:E141,2,FALSE)","v":0},{"$f":"VLOOKUP(C49,Indicatoren!B138:E141,3,FALSE)","v":0},{"$f":"VLOOKUP(C49,Indicatoren!B138:E141,4,FALSE)","v":0}]
[20,"Zijn er tijdelijke bouwsels aanwezig?","-",{"$f":"VLOOKUP(C50,Indicatoren!B143:E146,2,FALSE)","v":0},{"$f":"VLOOKUP(C50,Indicatoren!B143:E146,3,FALSE)","v":0},{"$f":"VLOOKUP(C50,Indicatoren!B143:E146,4,FALSE)","v":0}]
[21,"Zijn er kruisende publieksverschuivingen tijdens het evenement?","-",{"$f":"VLOOKUP(C51,Indicatoren!B148:E151,2,FALSE)","v":0},{"$f":"VLOOKUP(C51,Indicatoren!B148:E151,3,FALSE)","v":0},{"$f":"VLOOKUP(C51,Indicatoren!B148:E151,4,FALSE)","v":0}]
[22,"Is het evenement te allen tijden bereikbaar voor de hulpdiensten? ","-",{"$f":"VLOOKUP(C52,Indicatoren!B153:E155,2,FALSE)","v":0},{"$f":"VLOOKUP(C52,Indicatoren!B153:E155,3,FALSE)","v":0},{"$f":"VLOOKUP(C52,Indicatoren!B153:E155,4,FALSE)","v":0}]
[23,"Zijn er bereikbaarheidsbelemmeringen als gevolg van het evenement voor één van de volgende locaties?","-",{"$f":"VLOOKUP(C53,Indicatoren!B157:E163,2,FALSE)","v":0},{"$f":"VLOOKUP(C53,Indicatoren!B157:E163,3,FALSE)","v":0},{"$f":"VLOOKUP(C53,Indicatoren!B157:E163,4,FALSE)","v":0}]
[null,null,"-",{"$f":"VLOOKUP(C54,Indicatoren!B157:E163,2,FALSE)","v":0},{"$f":"VLOOKUP(C54,Indicatoren!B157:E163,3,FALSE)","v":0},{"$f":"VLOOKUP(C54,Indicatoren!B157:E163,4,FALSE)","v":0}]
[null,null,"-",{"$f":"VLOOKUP(C55,Indicatoren!B157:E163,2,FALSE)","v":0},{"$f":"VLOOKUP(C55,Indicatoren!B157:E163,3,FALSE)","v":0},{"$f":"VLOOKUP(C55,Indicatoren!B157:E163,4,FALSE)","v":0}]
[null,null,"-",{"$f":"VLOOKUP(C56,Indicatoren!B157:E163,2,FALSE)","v":0},{"$f":"VLOOKUP(C56,Indicatoren!B157:E163,3,FALSE)","v":0},{"$f":"VLOOKUP(C56,Indicatoren!B157:E163,4,FALSE)","v":0}]
[null,null,"-",{"$f":"MAX(D53:D56)","v":0},{"$f":"MAX(E53:E56)","v":0},{"$f":"MAX(F53:F56)","v":0}]
[24,"Welke risicobronnen zijn er op of aan het evenemententerrein?","-",{"$f":"VLOOKUP(C58,Indicatoren!B165:E172,2,FALSE)","v":0},{"$f":"VLOOKUP(C58,Indicatoren!B165:E172,3,FALSE)","v":0},{"$f":"VLOOKUP(C58,Indicatoren!B165:E172,4,FALSE)","v":0}]
[null,null,"-",{"$f":"VLOOKUP(C59,Indicatoren!B165:E172,2,FALSE)","v":0},{"$f":"VLOOKUP(C59,Indicatoren!B165:E172,3,FALSE)","v":0},{"$f":"VLOOKUP(C59,Indicatoren!B165:E172,4,FALSE)","v":0}]
[null,null,"-",{"$f":"VLOOKUP(C60,Indicatoren!B165:E172,2,FALSE)","v":0},{"$f":"VLOOKUP(C60,Indicatoren!B165:E172,3,FALSE)","v":0},{"$f":"VLOOKUP(C60,Indicatoren!B165:E172,4,FALSE)","v":0}]
[null,null,"-",{"$f":"MAX(D58:D60)","v":0},{"$f":"MAX(E58:E60)","v":0},{"$f":"MAX(F58:F60)","v":0}]
[null,null,"subtotaal ",{"$f":"SUM(D48:D52,D57,D61)","v":0},{"$f":"SUM(E48:E52,E57,E61)","v":0},{"$f":"SUM(F48:F52,F57,F61)","v":0}]
[null,null,"TOTAAL",{"$f":"D33+D43+D62","v":0},{"$f":"E33+E43+E62","v":0},{"$f":"F33+F43+F62","v":0}]
[null,null,null,{"$f":"IF(D63>4.7,\"C\",(IF(D63<2.4,\"A\",\"B\")))","v":"A"},{"$f":"IF(E63>5,\"C\",(IF(E63<1,\"A\",\"B\")))","v":"A"},{"$f":"IF(F63>1.6,\"C\",(IF(F63<1,\"A\", \"B\")))","v":"A"}]
[null,{"$f":"VLOOKUP(C50,Indicatoren!B143:F146,5,FALSE)","v":"  "},"Wijze van advisering door hulpdiensten",{"$f":"IF(D63>4.7,\"Betrokkenheid in het gehele proces\",(IF(D63<2.4,\"Standaard advisering\",\"Monodisciplinair maatwerk advies\")))","v":"Standaard advisering"},{"$f":"IF(E63>5,\"Betrokkenheid in het gehele proces\",(IF(E63<2,\"Standaard advisering op basis van folders\",\"Monodisciplinair maatwerk advies\")))","v":"Standaard advisering op basis van folders"},{"$f":"IF(F63>1.6,\"Betrokkenheid in het gehele proces\", (IF(F63<1,\"Standaard advisering op basis van folders\", \"Monodisciplinair maatwerk advies\")))","v":"Standaard advisering op basis van folders"}]
[]
[null,null,"INDICATIE BEHANDELAANPAK ",{"$f":"VLOOKUP(I67,Indicatoren!B177:C203,2,FALSE)","v":"A"},null,null,null,null,{"$f":"D64&E64&F64","v":"AAA"}]
[null,{"$f":"VLOOKUP(C25,Indicatoren!B61:F63,5,FALSE)","v":"    "},null,{"$f":"IF(D67=\"C\",\"Het betreft een risicovol evenement. Start een multidisciplinair traject op.\",\" \")","v":" "}]
[null,{"$f":"VLOOKUP(C41,Indicatoren!B115:F121,5,FALSE)","v":"                  "}]
[]
[null,{"$f":"IF(AND(C8=\"Brabant-Zuidoost\",F64=\"A\"),\"* Let op! Indien er een tent van meer dan 250m2 of meer dan 500 personen aanwezig zijn in deze tent kunt u een adives aanvragen bij de Brandweer\",\" \")","v":" "}]

{"sheet":"Indicatoren","index":2,"n_rows":210,"n_cols":8,"rows_kept":210,"cut":false,"hidden":false,"merged":[[39,23,39,30],[30,23,30,30],[33,23,33,30]]}
[null,"Wat voor soort evenement betreft het?","politie","GHOR","brandweer"]
[null,"Auto- of motorsportevenement",0.4,2,0.1]
[null,"Betaald voetbal",1,0,0]
[null,"Colourrun",0,2,0]
[null,"Controversieel evenement ",0.6,0,0]
[null,"Extreme sport / met zware fysieke inspanning",0.6,1,0]
[null,"Foodtruck",0,0,0.2]
[null,"Hardloop(wedstrijd) > 10 km",0.4,1,0]
[null,"Hardloop(wedstrijd) < 10 km ",0.2,0,0]
[null,"Kermis",0.2,0,0]
[null,"Markt of braderie",0,0,0.1]
[null,"Moutainbike recreatief",0,0,0]
[null,"Moutainbike wedstrijd",0,1,0]
[null,"Muziekevenement/ Festival",0.2,0,0.1]
[null,"Obstaclerun",0,2,0]
[null,"Optocht",0,0,0.1]
[null,"Paardenrace in de natuur (cross-country, endurance, military)",0,1,0]
[null,"Tentfeest",0.2,0,0.1]
[null,"Toerrit (fiets/skeelers/motor/auto)",0.2,0,0]
[null,"Vliegshow",1,0.5,0.3]
[null,"Wandelmars",0,0,0]
[null,"Wielerronde kleinschalig/recreatief",0,0,0]
[null,"Wielerronde grootschalig",0.4,1,0]
[null,"Wijk- / buurtfeest",0,0,0]
[null,"Overige evenementen",0,0,0.1]
[null,"-"]
[null,"Op welk moment vindt het evenement plaats?","politie","GHOR","brandweer"]
[null,"Één dag; overdag",0,0,0]
[null,"Één dag; overdag / avond",0.4,0,0]
[null,"Één dag; avond / nacht",0.4,0,0]
[null,"Meerdaags",0.6,0,0.1]
[null,"-"]
[null,"Als het een muziekfeest betreft, welke muziek betreft het dan?","politie","GHOR","brandweer"]
[null,"Geen muziekfeest",0,0,0]
[null,"House / dance",1,0,0]
[null,"Urban / hiphop / R&B",1,0,0]
[null,"Pop / rock",0.2,0,0]
[null,"Nederlandstalig / levenslied",0.2,0,0]
[null,"Top 40 muziek ",0,0,0]
[null,"Jazz / klassiek",0,0,0]
[null,"Overig",0,0,0]
[null,"-"]
[null,"Wordt er overnacht?","politie","GHOR","brandweer"]
[null,"Geen overnachting",0,0,0]
[null,"In een hiervoor bestemd bouwwerk/bouwsel/terrein",0.4,0,0.2]
[null,"In een niet hiervoor bestemd bouwwerk/bouwsel/terrein",0.4,2,1]
[null,"-"]
[null,"Wordt er een permanent bouwwerk gebruikt?","politie","GHOR","brandweer"]
[null,"Er wordt geen gebruik gemaakt van permanente bouwwerken",0,0,0,"  "]
[null,"Ja, conform regulier gebruik",0,0,0,"   "]
[null,"Ja, maar met meer personen dan bestemd   ",0,0,0.5,"Let op! Er moet voor het gebruik van een permanent bouwerk een melding brandveilig gebruik gedaan worden"]
[null,"Ja, maar niet conform regulier gebruik ",0,0,0.1,"Let op! Er moet voor het gebruik van een permanent bouwerk een melding brandveilig gebruik gedaan worden"]
[null,"Ja, maar met meer personen en niet conform regulier gebruik",0,0,1,"Let op! Er moet voor het gebruik van een permanent bouwerk een melding brandveilig gebruik gedaan worden"]
[null,"-",null,null,null,"   "]
[null,"Is er open vuur aanwezig? "]
[null,"Geen open vuur",0,0,0]
[null,"Klein open vuur",0,0,0.1]
[null,"Groot open vuur",0,0,0.3]
[null,"-"]
[null,"Wordt er vuurwerk afgestoken?","politie","GHOR","brandweer"]
[null,"Nee, er wordt geen vuurwerk afgestoken",0,0,0,"        "]
[null,"Ja, er wordt vuurwerk afgestoken",0.2,0,0.5,"Let op! Er moet voor vuurwerk een aanvraag ingediend worden bij de Provincie "]
[null,"-",null,null,null,"    "]
[null,"Wordt er gebruik gemaakt van één van de onderstaande watervoorzieningen?"]
[null,"Geen van onderstaande  watervoorzieningen",0,0,0]
[null,"Tijdelijke douches",0,2,0]
[null,"Tijdelijke zwem- speel- of bubbelbaden ",0,2,0]
[null,"Niet aangewezen zwemwater",0,2,0]
[null,"Vernevelinstallaties",0,2,0]
[null,"-"]
[null,"Wordt er voedsel bereidt op het evenemententerrein? ","politie","GHOR","brandweer"]
[null,"Geen voedselbereiding ",0,0,0]
[null,"Ja, door professionele cateraar(s)",0,0,0]
[null,"Ja, door niet professionele cateraars voor kleinere groepen (zoals buurt BBQ)       ",0,0,0]
[null,"Ja, door niet professionele cateraars voor grotere groepen  ",0,2,0]
[null,"-"]
[null,"Is er een gelegheid tot tatoeëring en/of piercen?"]
[null,"Nee",0,0,0]
[null,"Ja",0,2,0]
[null,"-"]
[null,"Zijn er ervaring met het evenement of de organisator?","politie","GHOR","brandweer"]
[null,"Nee, er zijn geen ervaringen",0.2,0,0]
[null,"Ja, er zijn positieve of neutrale ervaringen",0,0,0]
[null,"Ja, er zijn negatieve ervaringen ",1,0,0.1]
[null,"-"]
[null,"Hoeveel bedraagt het verwachtte aantal personen op het piekmoment?","politie","GHOR","brandweer"]
[null,"minder dan 150",0,0,0]
[null,"150-2.000",0.2,0,0.1]
[null,"2.000-4.000",0.4,1,0.2]
[null,"4.000-10.000",0.4,2,0.2]
[null,"10.000-50.000",0.6,2,0.4]
[null,"meer dan 50.000",1,2,0.4]
[null,"-"]
[null,"Wat is de belangrijkste leeftijdscategorie van de doelgroep","politie","GHOR","brandweer"]
[null,"Alle leeftijden",0.2,0,0.1]
[null,"0-12 jaar",0.2,0,0.1]
[null,"12-18 jaar ",0.4,0,0]
[null,"18-40 jaar",0.6,0,0]
[null,"40-65 jaar",0,0,0]
[null,"Ouder dan 65 jaar",0.2,0,0.1]
[null,"-"]
[null,"Wordt er een risicovolle doelgroep verwacht?","politie","GHOR","brandweer"]
[null,"Geen risicovolle doelgroep",0,0,0]
[null,"Hoogwaardigheidsbekleders",0.4,0,0]
[null,"Activisten of radicalen",1,0,0]
[null,"Conflicterende - of rivaliserende groepen",1,0,0]
[null,"Perso(o)n(en) met bijzonder - of verhoogd risico",1,0,0]
[null,"-"]
[null,"Is een deel van de doelgroep verminderd zelfredzaam?","politie","GHOR","brandweer"]
[null,"Geen verminderd zelfredzame doelgroep aanwezig",0,0,0]
[null,"Personen met een fysieke/geestelijke beperking zonder professionele begeleiding ",0.2,2,0.2]
[null,"Personen met een fysieke/geestelijke beperking met professionele begeleiding ",0.2,0,0.1]
[null,"-"]
[null,"Wordt er drank en / of drugs genuttigd?","politie","GHOR","brandweer"]
[null,"Nee",0,0,0,"               "]
[null,"Ja, er wordt drank geschonken",0.2,0,0.1,"  "]
[null,"Ja, er wordt naar verwachting overmatig gedronken binnen de brede doelgroep van het evenement",0.6,0.5,0.1,"   "]
[null,"Ja,er wordt naar verwachting drugs gebruikt door enkele individuen",0.2,0,0.1,"     "]
[null,"Ja, er wordt naar verwachting drugs gebruikt binnen de brede doelgroep van het evenement",0.6,0.5,0.1,"Let op! Pas de leidraad drugs op evenementen toe (Trimbos Instituut / Skip die Trip Oost-Brabant)"]
[null,"Ja, er wordt naar verwachting drank als drugs genuttigd binnen de brede doelgroep van het evenement",1,0.5,0.1,"Let op! Pas de leidraad drugs op evenementen toe (Trimbos Instituut / Skip die Trip Oost-Brabant)"]
[null,"-",null,null,null,"                  "]
[null,"Wat is de aantrekkingskracht van het evenement?","politie","GHOR","brandweer"]
[null,"Wijk",0,0,0]
[null,"Gemeentelijk ",0,0,0]
[null,"Regionaal",0.2,0,0]
[null,"Nationaal",0.4,0,0]
[null,"Internationaal ",0.6,0,0]
[null,"-"]
[null,"Wat is het type locatie en de ondergrond?","politie","GHOR","brandweer"]
[null,"Buitenlocatie, op water / (natuur)ijs ",1,2,0.1]
[null,"Buitenlocatie, aan water / (natuur)ijs",0.6,2,0.1]
[null,"Buitenlocatie, in het water",0.6,2,0.1]
[null,"Buitenlocatie, onverhard",0.6,0,0.1]
[null,"Buitenlocatie, verhard",0,0,0]
[null,"Binnenlocatie",0.2,0,0]
[null,"-"]
[null,"Betreft het een locatie met dieren?"]
[null,"Nee, geen locatie waar dieren (normaliter) verblijven/grazen",0,0,0]
[null,"Ja, locatie waar dieren aanwezig zijn",0,1,0]
[null,"Ja, locatie waar normaliter dieren verblijven/grazen",0,1,0]
[null,"-"]
[null,"Zijn er tijdelijke bouwsels aanwezig?","politie","GHOR","brandweer"]
[null,"Geen objecten aanwezig",0,0,0,"   "]
[null,"Aanwezig, maar niet toegankelijk",0,0,0.1,"   "]
[null,"Aanwezig en toegankelijk",0,0,0.2,"Let op! Indien het een bouwsel op het evenement betreft waarbij 150 personen of meer aanwezig zijn, is er een meldingsplicht BGBOP. Deze melding is niet nodig wanneer deze is geïntegreerd in de APV aanvraag."]
[null,"-",null,null,null,"  "]
[null,"Zijn er kruisende publieksverschuivingen tijdens het evenement?","politie","GHOR","brandweer"]
[null,"Nee, er zijn geen kruisende publieksverschuivingen",0,0,0]
[null,"Ja,  er zijn kleinschalige kruisende publieksverschuivingen ",0.4,0,0.1]
[null,"Ja, er zijn grootschalige kruisende verschuivingen",1,0,0.2]
[null,"-"]
[null,"Is het evenement te allen tijden bereikbaar voor de hulpdiensten? ","politie","GHOR","brandweer"]
[null,"Nee",0.6,0.5,0.5]
[null,"Ja",0,0,0]
[null,"-"]
[null,"Zijn er bereikbaarheidsbelemmeringen als gevolg van het evenement voor één van de volgende locaties?"]
[null,"Er zijn geen belemmeringen",0,0,0]
[null,"Er zijn bereikbaarheidsbelemmeringen voor een zorginstelling (ziekenhuis,verpleeghuis,gehandicaptezorg, GGZ etc) ",0,2,0.2]
[null,"Er zijn bereikbaarheidsbelemmeringen voor een medische post (ambulancepost, huisarts) ",0,2,0]
[null,"Er zijn bereikbaarheidsbelemmeringen voor een politiebureau",0.2,0,0]
[null,"Er zijn bereikbaarheidsbelemmeringen voor een brandweerpost",0,0,1]
[null,"Er zijn bereikbaarheidsbelemmeringen voor een volledige buurt of wijk",0.6,1,1]
[null,"-"]
[null,"Welke risicobronnen zijn er op of of aan het evenemententerrein?","politie","GHOR","brandweer"]
[null,"Geen risicobronnen",0,0,0]
[null,"Opslag gevaarlijke stoffen",0,0,0.2]
[null,"EOS-batterij  (Energie Opslag Systeem)",0,0,0.5]
[null,"Aggregaat",0,0,0.1]
[null,"Bak en braadtoestel",0,0,0.1]
[null,"Verwarmingstoestel",0,0,0.1]
[null,"Gemotoriseerd voertuig",0,0,0.1]
[null,"-"]
[]
[]
[]
[null,"Behandelaanpak Gemeenten  (POL-GHOR-BRW)","Indicatie behandelaanpak "]
[null,"AAA","A",null,null,null,null,"   "]
[null,"AAB","A"]
[null,"AAC","B"]
[null,"ABA","A"]
[null,"ABB","B"]
[null,"ABC","B"]
[null,"ACA","B"]
[null,"ACB","B"]
[null,"ACC","C"]
[null,"BAA","A"]
[null,"BAB","B"]
[null,"BAC","B"]
[null,"BBA","B"]
[null,"BBB","B"]
[null,"BBC","B"]
[null,"BCA","B"]
[null,"BCB","B"]
[null,"BCC","C"]
[null,"CAA","B"]
[null,"CAB","B"]
[null,"CAC","C"]
[null,"CBA","B"]
[null,"CBB","B"]
[null,"CBC","C"]
[null,"CCA","C"]
[null,"CCB","C"]
[null,"CCC","C"]
[]
[]
[]
[]
[null,"Brabant-Noord"]
[null,"Brabant-Zuidoost","A"]
[null,"Midden-en West-Brabant"]